bitfinex/quotes_SOLUSD_20250724
["timestamp","ask_amount","ask_price","bid_price","bid_amount"]
[1753319440640,26.0,190.62,190.61,0.06]
[1753319440835,62.68,190.62,190.61,5.72224262]
[1753319441041,36.68,190.62,190.61,5.72224262]
[1753319441253,62.68,190.62,190.61,5.72224262]
[1753319441866,62.68,190.62,190.61,0.76]
[1753319442070,62.68,190.62,190.61,5.72224262]
[1753319443273,62.68,190.62,190.61,0.76]
[1753319443635,62.68,190.62,190.61,0.06]
[1753319445867,31.24603924,190.62,190.61,0.06]
[1753319446056,67.92603924,190.62,190.61,0.06]
[1753319446265,90.35296583,190.62,190.61,0.06]
[1753319449859,53.67296583,190.62,190.61,0.06]
[1753319450072,0.03,190.63,190.61,0.06]
[1753319450249,36.68,190.62,190.61,0.76]
[1753319451273,36.68,190.62,190.61,5.72224262]
[1753319452959,36.68,190.62,190.61,0.06]
[1753319454346,42.63603924,190.62,190.61,0.06]
[1753319454664,59.42072321,190.62,190.61,0.06]
[1753319455952,64.38296583,190.62,190.61,0.06]
[1753319456649,66.48584883,190.62,190.61,0.06]
[1753319456863,42.78468397,190.58,190.57,0.06]
[1753319457045,84.42692659,190.58,190.57,0.06]
[1753319457245,85.13692659,190.58,190.57,0.06]
[1753319458554,90.38406689,190.58,190.57,0.06]
[1753319458957,92.48739289,190.58,190.57,0.06]
[1753319460161,42.78468397,190.58,190.57,0.78]
[1753319460354,62.68,190.58,190.57,0.78]
[1753319461159,26.0,190.58,190.57,0.06]
[1753319461345,0.03,190.62,190.57,10.98958538]
[1753319461542,0.03,190.62,190.61,4.96224262]
[1753319461951,0.03,190.62,190.61,5.68224262]
[1753319462445,2.132883,190.62,190.61,0.72]
[1753319462651,0.03,190.62,190.61,0.72]
[1753319462868,26.0,190.61,190.59,5.68224262]
[1753319463169,26.0,190.61,190.57,5.30734276]
[1753319463170,26.0,190.58,190.57,0.78]
[1753319463646,26.0,190.58,190.57,10.98965826]
[1753319464175,26.0,190.58,190.57,5.74224262]
[1753319464472,26.0,190.58,190.57,10.98965826]
[1753319464683,0.03,190.62,190.57,10.98965826]
[1753319464844,26.0,190.61,190.6,4.96224262]
[1753319465168,26.0,190.61,190.6,5.68224262]
[1753319465753,26.0,190.61,190.6,0.72]
[1753319468177,26.0,190.61,190.6,5.68224262]
[1753319469079,26.0,190.61,190.6,10.92883233]
[1753319470172,26.0,190.61,190.6,5.68224262]
[1753319472264,26.0,190.61,190.6,10.92883233]
[1753319474172,0.03,190.62,190.6,10.92883233]
[1753319474468,0.03,190.62,190.61,5.68224262]
[1753319477588,0.03,190.62,190.61,10.92855708]
[1753319478658,0.03,190.63,190.61,17.20845708]
[1753319478861,0.03,190.65,190.62,6.20684654]
[1753319479084,0.03,190.65,190.64,4.96224262]
[1753319479481,0.03,190.65,190.64,6.2067915]
[1753319479781,0.03,190.65,190.64,11.45228037]
[1753319481685,0.03,190.66,190.64,11.45228037]
[1753319481879,0.03,190.66,190.65,5.67224262]
[1753319482394,0.03,190.66,190.65,42.33224262]
[1753319483577,0.03,190.66,190.65,48.10197773]
[1753319484888,1e-08,190.66,190.65,49.69077773]
[1753319485786,0.03,190.68,190.65,49.69077773]
[1753319485984,0.03,190.68,190.67,4.96224262]
[1753319486295,0.03,190.68,190.67,5.48670897]
[1753319486587,0.03,190.68,190.67,6.19670897]
[1753319487794,0.03,190.68,190.67,11.44137252]
[1753319492793,0.03,190.68,190.67,10.91690617]
[1753319493091,0.03,190.68,190.65,37.18452137]
[1753319493309,0.67,190.67,190.61,6.2799]
[1753319493467,26.0,190.65,190.63,4.96224262]
[1753319493670,0.67,190.64,190.62,4.96224262]
[1753319494285,26.0,190.65,190.62,4.96224262]
[1753319494498,26.0,190.65,190.64,4.96224262]
[1753319494678,26.0,190.65,190.61,0.71]
[1753319494877,26.0,190.65,190.63,4.96224262]
[1753319495287,26.0,190.65,190.62,4.96224262]
[1753319495484,26.67,190.65,190.62,4.96224262]
[1753319502098,26.67,190.65,190.62,5.02224262]
[1753319502998,26.0,190.65,190.62,5.02224262]
[1753319503200,0.67,190.64,190.62,0.06]
[1753319504503,0.7,190.68,190.63,4.96224262]
[1753319504711,26.0,190.67,190.65,4.96224262]
[1753319505308,26.0,190.66,190.64,4.96224262]
[1753319505501,26.67,190.66,190.64,4.96224262]
[1753319505700,26.0,190.66,190.65,4.96224262]
[1753319505908,26.0,190.67,190.65,4.96224262]
[1753319506618,26.0,190.67,190.64,10.20769028]
[1753319506800,26.0,190.67,190.64,10.91769028]
[1753319507396,26.67,190.67,190.64,10.91769028]
[1753319507993,26.67,190.67,190.64,10.20769028]
[1753319508735,26.0,190.66,190.64,10.20769028]
[1753319508918,26.0,190.66,190.64,4.96224262]
[1753319510421,10.87748727,190.65,190.62,0.06]
[1753319510926,0.67,190.64,190.62,0.06]
[1753319511305,26.0,190.63,190.62,0.06]
[1753319512021,26.65,190.63,190.62,0.06]
[1753319512623,26.0,190.63,190.62,0.06]
[1753319517819,0.65,190.63,190.62,0.06]
[1753319518019,5.89576404,190.63,190.62,0.06]
[1753319518222,0.65,190.63,190.62,0.06]
[1753319518725,5.89576404,190.63,190.62,0.06]
[1753319518918,10.85800666,190.63,190.62,0.06]
[1753319519316,27.64269063,190.63,190.62,0.06]
[1753319520702,22.68044801,190.63,190.62,0.06]
[1753319520902,36.7,190.64,190.62,5.74224262]
[1753319520903,26.0,190.64,190.62,5.74224262]
[1753319521109,36.72,190.67,190.63,5.68224262]
[1753319521318,36.72,190.67,190.64,4.96224262]
[1753319521528,26.0,190.65,190.63,4.96224262]
[1753319521729,26.0,190.63,190.62,0.06]
[1753319522230,26.65,190.63,190.62,0.06]
[1753319523514,26.0,190.63,190.62,0.06]
[1753319524529,26.0,190.64,190.62,0.06]
[1753319525937,50.31383865,190.67,190.62,0.78]
[1753319526116,26.0,190.64,190.63,0.72]
[1753319526512,2.73686826,190.67,190.63,5.68224262]
[1753319526813,0.03,190.68,190.65,4.96224262]
[1753319527029,0.03,190.68,190.66,5.68224262]
[1753319527334,26.0,190.67,190.66,5.68224262]
[1753319527713,0.03,190.68,190.66,5.68224262]
[1753319528035,0.03,190.68,190.67,0.72]
[1753319528437,0.03,190.68,190.66,4.96224262]
[1753319528739,26.0,190.67,190.65,4.96224262]
[1753319529322,26.0,190.67,190.66,4.96224262]
[1753319530330,26.0,190.67,190.66,5.68224262]
[1753319530523,0.03,190.68,190.66,5.68224262]
[1753319530837,0.03,190.68,190.63,0.5245764]
[1753319530838,0.03,190.68,190.67,5.68224262]
[1753319531221,0.03,190.68,190.67,4.96224262]
[1753319531635,0.03,190.68,190.66,4.96224262]
[1753319533340,26.0,190.67,190.65,4.96224262]
[1753319534514,26.0,190.67,190.63,5.9657571]
[1753319534743,26.0,190.67,190.65,4.96224262]
[1753319535122,26.0,190.67,190.64,0.72]
[1753319535321,26.0,190.67,190.65,4.96224262]
[1753319535748,26.0,190.66,190.65,4.96224262]
[1753319536119,26.65,190.66,190.62,0.78]
[1753319536444,0.65,190.66,190.62,0.78]
[1753319536743,0.65,190.66,190.63,4.96224262]
[1753319537351,26.0,190.67,190.63,5.68224262]
[1753319537645,26.0,190.65,190.64,4.96224262]
[1753319539635,0.65,190.65,190.62,5.02224262]
[1753319539947,26.0,190.64,190.62,0.06]
[1753319540151,0.65,190.63,190.62,0.06]
[1753319540945,5.89576404,190.63,190.62,0.06]
[1753319541335,5.92576404,190.63,190.62,0.06]
[1753319544854,27.67269063,190.63,190.62,0.06]
[1753319546268,64.39269063,190.63,190.62,0.06]
[1753319547945,59.43044801,190.63,190.62,0.06]
[1753319548147,64.39269063,190.63,190.62,0.06]
[1753319548824,67.13037136,190.63,190.62,0.06]
[1753319550025,62.16812874,190.63,190.62,0.06]
[1753319550232,67.13037136,190.63,190.62,0.06]
[1753319552735,24.76812874,190.63,190.62,0.06]
[1753319552943,61.46812874,190.63,190.62,0.06]
[1753319553152,28.73768073,190.63,190.62,0.06]
[1753319553356,26.0,190.63,190.62,0.06]
[1753319553842,24.48398465,190.67,190.62,5.74224262]
[1753319554051,24.48398465,190.67,190.63,0.72]
[1753319554052,61.46650704,190.67,190.63,0.72]
[1753319554262,26.0,190.64,190.63,0.72]
[1753319554943,26.0,190.63,190.62,0.06]
[1753319556454,26.68,190.63,190.62,0.06]
[1753319556954,48.71044801,190.63,190.62,0.06]
[1753319557153,90.39269063,190.63,190.62,0.06]
[1753319558463,85.43044801,190.63,190.62,0.06]
[1753319558664,84.75044801,190.63,190.62,0.06]
[1753319560865,48.71044801,190.63,190.62,0.06]
[1753319561032,53.67269063,190.63,190.62,0.06]
[1753319563640,53.67269063,190.63,190.62,1e-08]
[1753319563942,55.77568463,190.63,190.62,1e-08]
[1753319564441,53.67269063,190.63,190.62,1e-08]
[1753319565061,4.96224262,190.66,190.62,1e-08]
[1753319565275,50.38400087,190.67,190.62,5.68224263]
[1753319565560,16.78468397,190.66,190.63,0.72]
[1753319565769,26.0,190.64,190.63,4.96224262]
[1753319566142,2.73705806,190.67,190.63,4.96224262]
[1753319566339,0.03,190.68,190.64,0.72]
[1753319566655,26.0,190.66,190.65,4.96224262]
[1753319566837,26.03,190.66,190.65,4.96224262]
[1753319567038,0.03,190.66,190.65,10.92745636]
[1753319568063,0.03,190.66,190.65,5.96521374]
[1753319568260,0.03,190.66,190.65,10.92745636]
[1753319575860,0.03,190.66,190.65,5.68224262]
[1753319576967,0.03,190.66,190.65,10.92745636]
[1753319580192,0.03,190.66,190.65,11.45197773]
[1753319582290,0.03,190.66,190.65,10.92745636]
[1753319582670,0.03,190.66,190.65,4.96224262]
[1753319583672,0.03,190.66,190.65,10.20745636]
[1753319583873,0.03,190.66,190.65,10.87745636]
[1753319585567,0.03,190.66,190.64,36.74]
[1753319585779,0.03,190.66,190.65,4.96224262]
[1753319585978,0.03,190.66,190.64,36.74]
[1753319585979,0.03,190.66,190.64,41.70224262]
[1753319586174,26.03,190.66,190.64,41.70224262]
[1753319586466,26.03,190.66,190.64,36.74]
[1753319586683,26.03,190.66,190.64,41.70224262]
[1753319589601,26.03,190.66,190.64,42.37224262]
[1753319590394,26.03,190.66,190.65,0.67]
[1753319590687,26.03,190.66,190.65,5.63224262]
[1753319590869,26.03,190.66,190.65,4.96224262]
[1753319591067,26.03,190.66,190.64,41.70224262]
[1753319591678,26.03,190.66,190.64,42.37224262]
[1753319592390,26.03,190.66,190.64,4.96224262]
[1753319592696,0.03,190.66,190.65,4.96224262]
[1753319592904,0.03,190.66,190.64,5.91537148]
[1753319593090,26.03,190.66,190.64,0.67]
[1753319593301,26.03,190.66,190.65,4.96224262]
[1753319595592,26.03,190.66,190.64,4.96224262]
[1753319596673,26.03,190.66,190.64,5.63224262]
[1753319597688,26.03,190.66,190.64,4.96224262]
[1753319600486,0.03,190.66,190.65,4.96224262]
[1753319600787,0.03,190.68,190.65,49.21606399]
[1753319600981,0.03,190.68,190.67,4.96224262]
[1753319601181,0.03,190.68,190.67,42.18670897]
[1753319601482,0.03,190.68,190.67,48.10137252]
[1753319604696,0.03,190.68,190.67,42.4691299]
[1753319604895,0.03,190.68,190.67,48.10137252]
[1753319621511,0.03,190.68,190.67,43.1391299]
[1753319621809,0.03,190.68,190.67,48.10137252]
[1753319624004,0.03,190.69,190.67,53.06361514]
[1753319624308,0.03,190.7,190.68,10.59448524]
[1753319624517,0.03,190.7,190.69,47.10889658]
[1753319624721,0.03,190.7,190.69,42.81665396]
[1753319625094,0.03,190.7,190.69,48.06076744]
[1753319625298,0.03,190.7,190.69,47.5363561]
[1753319628222,0.03,190.7,190.69,52.49859872]
[1753319628528,0.03,190.7,190.69,47.5363561]
[1753319630721,0.03,190.7,190.69,10.8763561]
[1753319630921,0.03,190.7,190.69,47.5363561]
[1753319631123,0.03,190.7,190.69,10.8763561]
[1753319631316,0.03,190.7,190.69,47.5363561]
[1753319632926,0.03,190.71,190.7,9.92448524]
[1753319633224,0.03,190.71,190.7,17.04841844]
[1753319633431,0.03,190.71,190.7,22.29225692]
[1753319638529,0.03,190.71,190.7,94.64822232]
[1753319638733,0.03,190.71,190.7,147.15225692]
[1753319639030,0.03,190.71,190.7,146.62787308]
[1753319639618,1e-08,190.71,190.7,146.62787308]
[1753319639823,0.03,190.74,190.72,5.24328859]
[1753319640020,0.03,190.74,190.72,133.79642436]
[1753319640213,0.03,190.74,190.72,133.95209551]
[1753319640923,0.03,190.74,190.72,93.44328859]
[1753319641228,0.75,190.73,190.7,5.24379066]
[1753319641436,0.75,190.73,190.71,36.66]
[1753319642449,0.75,190.73,190.72,3.16880692]
[1753319642730,0.03,190.73,190.72,3.16880692]
[1753319643229,0.03,190.73,190.71,41.90351165]
[1753319643230,26.75,190.73,190.71,36.66]
[1753319643438,0.72,190.72,190.71,36.66]
[1753319643864,0.72,190.72,190.71,41.90356352]
[1753319644138,0.72,190.72,190.71,45.07237044]
[1753319644320,0.03,190.73,190.71,45.07237044]
[1753319644640,0.75,190.73,190.71,45.07237044]
[1753319644932,0.72,190.72,190.71,45.07237044]
[1753319646125,0.03,190.73,190.71,45.07237044]
[1753319646331,0.75,190.73,190.71,45.07237044]
[1753319646536,0.72,190.72,190.67,0.68]
[1753319646719,0.72,190.72,190.69,3.16880692]
[1753319647027,0.72,190.71,190.7,39.82880692]
[1753319648211,26.03,190.73,190.7,39.82880692]
[1753319648434,0.72,190.72,190.7,39.82880692]
[1753319648737,26.72,190.72,190.7,36.66]
[1753319648913,26.0,190.72,190.7,36.66]
[1753319649112,0.72,190.71,190.7,36.66]
[1753319653737,26.72,190.71,190.66,0.06]
[1753319653925,0.72,190.7,190.67,36.66]
[1753319654116,0.72,190.7,190.66,0.06]
[1753319654117,3.16880692,190.69,190.66,0.06]
[1753319654425,0.72,190.68,190.66,0.06]
[1753319655740,0.72,190.67,190.66,0.06]
[1753319656040,3.16880692,190.7,190.66,0.06]
[1753319656041,0.72,190.69,190.66,0.06]
[1753319656343,0.72,190.68,190.66,0.06]
[1753319659335,0.03,190.73,190.67,40.50880692]
[1753319659530,0.03,190.73,190.72,3.16880692]
[1753319659734,0.03,190.73,190.72,40.35313577]
[1753319660138,0.03,190.73,190.72,46.27642436]
[1753319661129,0.03,190.73,190.72,48.05847978]
[1753319662447,0.03,190.73,190.72,6.48761744]
[1753319662744,0.03,190.73,190.72,48.09847978]
[1753319664334,0.03,190.73,190.72,5.24328859]
[1753319664524,0.75,190.73,190.72,46.83415093]
[1753319664726,0.03,190.73,190.72,47.55415093]
[1753319665339,0.03,190.73,190.72,48.07847978]
[1753319667851,1e-08,190.74,190.72,48.07847978]
[1753319668032,1e-08,190.74,190.73,5.67086234]
[1753319668936,1e-08,190.74,190.73,10.91387602]
[1753319671348,1e-08,190.74,190.73,11.43817738]
[1753319674049,1e-08,190.74,190.73,99.63817738]
[1753319674253,0.03,190.75,190.73,99.63817738]
[1753319674458,0.03,190.75,190.74,42.31086234]
[1753319674757,1e-08,190.75,190.74,42.31086234]
[1753319674936,1e-08,190.75,190.74,42.83513622]
[1753319676351,1e-08,190.75,190.74,48.07787502]
[1753319680069,1e-08,190.75,190.74,136.27787502]
[1753319680276,1e-08,190.75,190.74,135.75360114]
[1753319681447,0.03,190.76,190.74,135.75360114]
[1753319681653,0.75,190.81,190.76,9.90172468]
[1753319681654,1e-08,190.79,190.76,9.90172468]
[1753319681842,1e-08,190.79,190.78,9.90172468]
[1753319682039,0.03,190.81,190.78,9.90172468]
[1753319682244,0.03,190.81,190.8,15.14281482]
[1753319682473,0.03,190.81,190.8,103.34281482]
[1753319682672,0.03,190.81,190.8,104.06281482]
[1753319686156,0.03,190.81,190.8,140.70281482]
[1753319686359,0.03,190.81,190.8,139.98281482]
[1753319686764,0.03,190.81,190.8,140.70281482]
[1753319689143,0.75,190.81,190.8,93.44109014]
[1753319689343,0.75,190.81,190.8,135.01195248]
[1753319691866,0.75,190.81,190.8,46.81195248]
[1753319693066,0.75,190.81,190.8,41.57086234]
[1753319693775,0.75,190.81,190.77,4.95086234]
[1753319693955,26.0,190.79,190.78,36.62]
[1753319694149,26.0,190.78,190.75,0.06]
[1753319694365,4.95086234,190.77,190.75,36.68]
[1753319694649,5.66086234,190.77,190.75,0.06]
[1753319694962,0.71,190.76,190.75,0.06]
[1753319696771,26.71,190.78,190.75,5.01086234]
[1753319696963,26.71,190.78,190.77,4.95086234]
[1753319697167,26.0,190.78,190.77,4.95086234]
[1753319697371,26.71,190.8,190.77,4.95086234]
[1753319697675,0.71,190.79,190.78,41.59086234]
[1753319697884,0.03,190.81,190.79,5.24136485]
[1753319698176,0.03,190.81,190.8,41.59086234]
[1753319700164,0.03,190.81,190.8,46.83195248]
[1753319700379,0.03,190.81,190.8,48.01606149]
[1753319700956,0.03,190.81,190.8,47.35606149]
[1753319701363,0.03,190.81,190.8,46.83195248]
[1753319704280,0.03,190.81,190.8,47.49195248]
[1753319704666,0.03,190.81,190.8,52.96692383]
[1753319705687,0.03,190.81,190.8,52.44281482]
[1753319706191,0.03,190.81,190.8,52.42281482]
[1753319706688,0.03,190.81,190.8,5.24109014]
[1753319706988,0.03,190.81,190.8,46.83195248]
[1753319707374,0.74,190.81,190.8,41.88109014]
[1753319707562,0.74,190.81,190.8,46.83195248]
[1753319707881,0.03,190.81,190.8,46.83195248]
[1753319709588,0.74,190.81,190.8,46.83195248]
[1753319710701,0.74,190.81,190.8,36.62]
[1753319711002,26.74,190.81,190.78,10.19233839]
[1753319711205,0.71,190.8,190.78,41.57086234]
[1753319712185,0.71,190.8,190.78,36.62]
[1753319712584,0.71,190.8,190.77,36.62]
[1753319712890,4.95086234,190.79,190.75,36.68]
[1753319713092,0.71,190.78,190.75,36.68]
[1753319713276,0.71,190.78,190.75,0.06]
[1753319716199,30.95086234,190.76,190.75,0.06]
[1753319716499,50.01644631,190.76,190.75,0.06]
[1753319718277,55.25863544,190.76,190.75,0.06]
[1753319718604,61.80143544,190.76,190.75,0.06]
[1753319721393,0.68,190.78,190.75,0.06]
[1753319721593,1.5864,190.81,190.75,0.06]
[1753319721594,0.68,190.77,190.75,0.06]
[1753319721807,26.68,190.77,190.75,0.06]
[1753319721979,26.0,190.77,190.75,0.06]
[1753319722179,0.68,190.76,190.75,0.06]
[1753319722916,26.68,190.76,190.75,0.06]
[1753319725509,0.03,190.81,190.75,42.37086234]
[1753319725689,0.03,190.81,190.8,4.95086234]
[1753319726223,0.03,190.81,190.8,5.63086234]
[1753319726904,0.03,190.81,190.8,4.95086234]
[1753319727217,0.71,190.81,190.79,4.95086234]
[1753319727418,0.71,190.81,190.79,10.19217191]
[1753319727811,0.03,190.81,190.79,10.19217191]
[1753319728711,0.03,190.81,190.78,5.24163958]
[1753319728904,0.71,190.81,190.78,4.95086234]
[1753319729103,0.03,190.81,190.79,4.95086234]
[1753319730323,0.71,190.81,190.78,10.19233639]
[1753319730692,26.0,190.8,190.78,4.95086234]
[1753319730914,26.68,190.8,190.78,4.95086234]
[1753319731514,0.68,190.8,190.77,46.93273868]
[1753319733596,0.03,190.81,190.77,47.61273868]
[1753319733801,0.03,190.81,190.77,46.93273868]
[1753319734003,0.71,190.81,190.77,46.93273868]
[1753319734412,0.71,190.81,190.77,47.61273868]
[1753319735805,0.03,190.81,190.77,47.61273868]
[1753319736004,26.0,190.8,190.79,4.95086234]
[1753319737124,26.03,190.81,190.79,5.63086234]
[1753319737301,26.03,190.81,190.8,0.68]
[1753319737623,26.03,190.81,190.79,4.95086234]
[1753319737824,26.03,190.81,190.77,4.95086234]
[1753319737825,0.68,190.8,190.77,4.95086234]
[1753319738008,26.68,190.8,190.78,36.7]
[1753319738707,26.0,190.8,190.78,36.7]
[1753319739127,26.0,190.8,190.77,46.95260981]
[1753319739328,26.0,190.8,190.77,47.63260981]
[1753319739631,26.0,190.8,190.78,4.95086234]
[1753319740503,26.0,190.8,190.78,5.63086234]
[1753319740926,0.03,190.81,190.79,5.63086234]
[1753319741127,0.03,190.81,190.8,4.95086234]
[1753319741459,0.71,190.81,190.79,36.7]
[1753319741637,0.68,190.8,190.79,36.7]
[1753319742209,0.03,190.81,190.79,36.7]
[1753319743212,0.03,190.81,190.79,41.94131153]
[1753319744109,0.03,190.81,190.79,36.7]
[1753319744423,0.71,190.81,190.78,10.19242856]
[1753319745829,26.0,190.82,190.78,10.19242856]
[1753319746406,26.0,190.82,190.78,10.87242856]
[1753319747834,30.95086234,190.82,190.77,41.69086234]
[1753319748024,5.56086234,190.81,190.77,36.74]
[1753319748334,5.56086234,190.8,190.77,36.74]
[1753319748715,0.61,190.8,190.77,36.74]
[1753319748921,31.85060153,190.82,190.77,5.98190866]
[1753319749132,36.80146387,190.82,190.77,5.98190866]
[1753319749537,0.61,190.81,190.77,5.98190866]
[1753319749712,26.61,190.81,190.77,5.98190866]
[1753319750328,26.0,190.81,190.77,0.06]
[1753319750530,31.56086234,190.81,190.77,0.06]
[1753319750735,0.61,190.8,190.77,0.06]
[1753319752435,0.61,190.79,190.77,0.06]
[1753319753137,5.56086234,190.79,190.77,0.06]
[1753319753346,31.56086234,190.78,190.77,0.06]
[1753319753549,48.34554631,190.78,190.77,0.06]
[1753319754441,53.58718589,190.78,190.77,0.06]
[1753319754652,55.15418589,190.78,190.77,0.06]
[1753319757724,16.78468397,190.77,190.75,1e-08]
[1753319757933,58.39554631,190.76,190.75,1e-08]
[1753319758236,16.78468397,190.75,190.74,1e-08]
[1753319758440,22.34554631,190.75,190.74,1e-08]
[1753319759746,27.58801026,190.75,190.74,1e-08]
[1753319767067,21.73554631,190.75,190.74,1e-08]
[1753319767262,26.97801026,190.75,190.74,1e-08]
[1753319767465,27.58801026,190.75,190.74,1e-08]
[1753319768436,26.97801026,190.75,190.74,1e-08]
[1753319769236,27.58801026,190.75,190.74,1e-08]
[1753319771065,26.97801026,190.75,190.74,1e-08]
[1753319771443,27.58801026,190.75,190.74,1e-08]
[1753319771653,26.97801026,190.75,190.74,1e-08]
[1753319772639,22.02714792,190.75,190.74,0.66000001]
[1753319772838,26.97801026,190.75,190.74,0.66000001]
[1753319773132,26.97801026,190.75,190.74,1e-08]
[1753319774659,27.58801026,190.75,190.74,1e-08]
[1753319774954,26.97801026,190.75,190.74,1e-08]
[1753319775569,22.02714792,190.75,190.74,1e-08]
[1753319775742,26.97801026,190.75,190.74,1e-08]
[1753319778769,27.58801026,190.75,190.74,1e-08]
[1753319782974,27.61801026,190.75,190.74,1e-08]
[1753319786771,27.00801026,190.75,190.74,1e-08]
[1753319789081,27.61801026,190.75,190.74,1e-08]
[1753319791574,27.00801026,190.75,190.74,1e-08]
[1753319792592,27.61801026,190.75,190.74,1e-08]
[1753319796579,27.00801026,190.75,190.74,1e-08]
[1753319797368,27.61801026,190.75,190.74,1e-08]
[1753319802783,47.73554631,190.72,190.71,0.06]
[1753319802982,84.39554631,190.72,190.71,0.06]
[1753319803382,85.00554631,190.72,190.71,0.06]
[1753319803587,87.7417686,190.72,190.71,0.06]
[1753319804080,87.1317686,190.72,190.71,0.06]
[1753319804291,87.7417686,190.72,190.71,0.06]
[1753319804490,92.98505719,190.72,190.71,0.06]
[1753319806683,97.14696643,190.72,190.71,0.06]
[1753319807492,92.98505719,190.72,190.71,0.06]
[1753319807692,92.37505719,190.72,190.71,0.06]
[1753319808508,88.03419485,190.72,190.71,0.06]
[1753319808806,92.98505719,190.72,190.71,0.06]
[1753319811498,92.37505719,190.72,190.71,0.06]
[1753319814414,87.42419485,190.72,190.71,0.06]
[1753319814588,92.37505719,190.72,190.71,0.06]
[1753319815213,87.42419485,190.72,190.71,0.06]
[1753319815394,45.52090626,190.72,190.71,0.73]
[1753319815586,87.42419485,190.72,190.71,0.73]
[1753319817005,92.37505719,190.72,190.71,0.73]
[1753319818013,87.42419485,190.72,190.71,0.73]
[1753319818393,92.37505719,190.72,190.71,0.73]
[1753319823332,92.37505719,190.72,190.71,0.06]
[1753319825417,92.37505719,190.72,190.71,0.73]
[1753319828834,87.42419485,190.72,190.71,0.73]
[1753319830121,2.73622229,190.72,190.71,0.73]
[1753319830418,79.44468397,190.72,190.71,0.06]
[1753319830728,84.39554631,190.72,190.71,0.06]
[1753319832209,89.6388349,190.72,190.71,0.06]
[1753319832729,89.6388349,190.72,190.71,0.73]
[1753319833107,89.6388349,190.72,190.71,0.06]
[1753319834307,90.2488349,190.72,190.71,0.06]
[1753319835114,89.6388349,190.72,190.71,0.06]
[1753319838416,90.2488349,190.72,190.71,0.06]
[1753319839049,90.2488349,190.72,190.7,0.06]
[1753319839050,16.78468397,190.71,190.7,0.06]
[1753319839220,32.65535302,190.7,190.69,1e-08]
[1753319839407,69.92535302,190.7,190.69,1e-08]
[1753319840818,75.1691915,190.7,190.69,1e-08]
[1753319841227,69.21783395,190.7,190.69,1e-08]
[1753319842530,59.29852245,190.7,190.69,1e-08]
[1753319842743,69.21783395,190.7,190.69,1e-08]
[1753319844132,68.60783395,190.7,190.69,1e-08]
[1753319844346,58.68852245,190.7,190.69,1e-08]
[1753319844532,63.6481782,190.7,190.69,0.68000001]
[1753319845020,58.68852245,190.7,190.69,0.68000001]
[1753319846038,36.66,190.7,190.69,0.68000001]
[1753319846244,26.0,190.7,190.69,0.68000001]
[1753319847840,26.0,190.7,190.69,5.63965576]
[1753319849707,0.03,190.73,190.69,10.88376924]
[1753319850033,26.0,190.72,190.71,4.95965575]
[1753319850206,26.0,190.72,190.71,5.63965575]
[1753319851163,0.03,190.73,190.71,5.63965575]
[1753319851463,26.03,190.73,190.72,11.87075575]
[1753319852635,26.03,190.73,190.72,6.9111]
[1753319853847,26.03,190.73,190.72,11.87075575]
[1753319856948,26.03,190.73,190.72,6.9111]
[1753319857459,26.03,190.73,190.72,0.68]